fUSD/lending_fUSD_20250623
["ID","MTS","AMOUNT","RATE_DAILY","PERIOD"]
[367117135,1750662745585,-1584.78,0.00030684,3]
[367117136,1750662745595,-490.0,0.00030684,3]
[367117137,1750662745605,-490.0,0.00030684,3]
[367117138,1750662745711,-490.0,0.00030684,3]
[367117139,1750662745720,-1089.25,0.00030684,3]
[367117140,1750662745729,-914.26,0.00030684,3]
[367117141,1750662745738,-777.39,0.00030684,3]
[367117142,1750662745749,-667.3,0.00030684,3]
[367117143,1750662745758,-1172.55,0.00030684,3]
[367117144,1750662745768,-857.69,0.00030684,3]
[367117145,1750662745777,-601.26,0.00030684,3]
[367117146,1750662745787,-654.18,0.00030684,3]
[367117147,1750662745796,-1486.14,0.00030684,3]
[367117148,1750662745806,-563.6,0.00030684,3]
[367117149,1750662745816,-641.56,0.00030684,3]
[367117150,1750662745825,-2328.1,0.00030684,3]
[367117151,1750662745835,-490.0,0.00030684,3]
[367117152,1750662745843,-490.0,0.00030684,3]
[367117153,1750662745854,-2984.61,0.00030684,3]
[367117154,1750662745863,-834.55,0.00030684,3]
[367117155,1750662745873,-1714.75,0.00030684,3]
[367117156,1750662745882,-1666.5,0.00030684,3]
[367117157,1750662745891,-556.39714858,0.00030684,2]
[367117158,1750662745901,-579.07,0.00030684,3]
[367117159,1750662745911,-774.87,0.00030684,3]
[367117160,1750662745920,-198.016965,0.00030684,3]
[367117161,1750662745930,-490.0,0.00030684,3]
[367117162,1750662745939,-523.64,0.00030684,3]
[367117163,1750662745948,-1685.1,0.00030684,3]
[367117164,1750662745957,-685.83,0.00030684,3]
[367117165,1750662745966,-845.32,0.00030684,3]
[367117166,1750662745975,-490.0,0.00030684,3]
[367117167,1750662745984,-490.0,0.00030684,3]
[367117168,1750662745994,-1003.013708,0.00030684,3]
[367117169,1750662746003,-407.03,0.00030684,3]
[367117170,1750662746012,-490.0,0.00030684,3]
[367117171,1750662746021,-620.28,0.00030684,3]
[367117172,1750662746030,-692.18,0.00030684,3]
[367117173,1750662746039,-583.42,0.00030684,3]
[367117174,1750662746049,-490.0,0.00030684,3]
[367117175,1750662746058,-1382.11,0.00030684,3]
[367117176,1750662746067,-490.0,0.00030684,3]
[367117177,1750662746077,-957.53,0.00030684,3]
[367117178,1750662746086,-1520.85,0.00030684,3]
[367117179,1750662746096,-852.4,0.00030684,3]
[367117180,1750662746105,-1514.64,0.00030684,3]
[367117181,1750662746115,-564.98,0.00030684,3]
[367117182,1750662746125,-1413.76,0.00030684,3]
[367117183,1750662746135,-621.88,0.00030684,3]
[367117184,1750662746145,-643.76,0.00030684,3]
[367117185,1750662746154,-1486.85,0.00030684,3]
[367117186,1750662746163,-605.57,0.00030684,3]
[367117187,1750662746173,-765.6,0.00030684,3]
[367117188,1750662746183,-635.87,0.00030684,3]
[367117189,1750662746194,-490.0,0.00030684,3]
[367117190,1750662746203,-748.29,0.00030684,3]
[367117191,1750662746213,-559.87,0.00030684,3]
[367117192,1750662746222,-521.1,0.00030684,3]
[367117193,1750662746232,-702.32,0.00030684,3]
[367117194,1750662746241,-1437.96,0.00030684,3]
[367117195,1750662746251,-933.29,0.00030684,3]
[367117196,1750662746260,-623.74,0.00030684,3]
[367117197,1750662746269,-1229.23,0.00030684,3]
[367117198,1750662746280,-1240.62,0.00030684,3]
[367117199,1750662746289,-490.0,0.00030684,3]
[367117200,1750662746298,-1044.91,0.00030684,3]
[367117201,1750662746307,-636.16,0.00030684,3]
[367117202,1750662746317,-490.92,0.00030684,3]
[367117203,1750662746326,-583.46,0.00030684,3]
[367117204,1750662746335,-1648.05,0.00030684,3]
[367117205,1750662746345,-745.48,0.00030684,3]
[367117206,1750662746355,-1819.02,0.00030684,3]
[367117207,1750662746364,-1025.74,0.00030684,3]
[367117208,1750662746374,-507.64,0.00030684,3]
[367117209,1750662746383,-1776.13,0.00030684,3]
[367117210,1750662746393,-803.35,0.00030684,3]
[367117211,1750662746403,-1305.95,0.00030684,3]
[367117212,1750662746413,-825.12,0.00030684,3]
[367117213,1750662746422,-1801.52,0.00030684,3]
[367117214,1750662746432,-553.17,0.00030684,3]
[367117215,1750662746441,-1449.74,0.00030684,3]
[367117216,1750662746451,-1184.6,0.00030684,3]
[367117217,1750662746461,-2077.31,0.00030684,3]
[367117218,1750662746470,-903.1,0.00030684,3]
[367117219,1750662746480,-1228.76,0.00030684,3]
[367117220,1750662746490,-840.82,0.00030684,3]
[367117221,1750662746500,-972.48,0.00030684,3]
[367117222,1750662746509,-1017.63,0.00030684,3]
[367117223,1750662746518,-490.0,0.00030684,3]
[367117224,1750662746531,-566.16996204,0.00030684,3]
[367117225,1750662746540,-698.82,0.00030684,3]
[367117226,1750662746549,-1683.09,0.00030684,3]
[367117227,1750662746559,-614.18,0.00030684,3]
[367117228,1750662746571,-1068.5,0.00030684,3]
[367117229,1750662746581,-492.43,0.00030684,3]
[367117230,1750662746590,-490.0,0.00030684,3]
[367117231,1750662746601,-899.45,0.00030684,3]
[367117232,1750662746611,-1636.32,0.00030684,3]
[367117233,1750662746620,-522.07982135,0.00030684,3]
[367117234,1750662746629,-1018.31,0.00030684,3]
[367117235,1750662746638,-1034.85,0.00030684,3]
[367117236,1750662746648,-490.0,0.00030684,3]
[367117237,1750662746657,-636.43,0.00030684,3]
[367117238,1750662746667,-514.73,0.00030684,3]
[367117239,1750662746676,-1597.54,0.00030684,3]
[367117240,1750662746685,-878.08,0.00030684,3]
[367117241,1750662746694,-490.0,0.00030684,3]
[367117242,1750662746704,-933.44,0.00030684,3]
[367117243,1750662746716,-490.0,0.00030684,3]
[367117244,1750662746725,-980.14,0.00030684,3]
[367117245,1750662746734,-1351.29,0.00030684,3]
[367117246,1750662746743,-490.0,0.00030684,3]
[367117247,1750662746752,-490.0,0.00030684,3]
[367117248,1750662746763,-1021.72,0.00030684,3]
[367117249,1750662746772,-490.0,0.00030684,3]
[367117250,1750662746782,-490.0,0.00030684,3]
[367117251,1750662746791,-2515.92,0.00030684,3]
[367117252,1750662746800,-563.49,0.00030684,3]
[367117253,1750662746809,-718.42,0.00030684,3]
[367117254,1750662746819,-973.74,0.00030684,3]
[367117255,1750662746829,-490.0,0.00030684,3]
[367117256,1750662746838,-763.59,0.00030684,3]
[367117257,1750662746848,-490.0,0.00030684,3]
[367117258,1750662746857,-1171.08,0.00030684,3]
[367117259,1750662746866,-490.0,0.00030684,3]
[367117260,1750662746875,-806.32,0.00030684,3]
[367117261,1750662746884,-513.33371761,0.00030684,3]
[367117262,1750662746894,-1313.3,0.00030684,3]
[367117263,1750662746903,-490.0,0.00030684,3]
[367117264,1750662746912,-1866.63,0.00030684,3]
[367117265,1750662746922,-783.39,0.00030684,3]
[367117266,1750662746932,-1408.5,0.00030684,3]
[367117267,1750662746941,-760.51,0.00030684,3]
[367117268,1750662746952,-640.07,0.00030684,3]
[367117269,1750662746962,-1113.91,0.00030684,3]
[367117270,1750662746971,-1615.12,0.00030684,3]
[367117271,1750662746980,-1204.57,0.00030684,3]
[367117272,1750662746989,-490.0,0.00030684,3]
[367117273,1750662746998,-852.31,0.00030684,3]
[367117274,1750662747007,-1617.57,0.00030684,3]
[367117275,1750662747016,-1344.16,0.00030684,3]
[367117276,1750662747025,-1189.28,0.00030684,3]
[367117277,1750662747035,-490.0,0.00030684,3]
[367117278,1750662747045,-924.24,0.00030684,3]
[367117279,1750662747055,-1017.87,0.00030684,3]
[367117280,1750662747064,-1327.65,0.00030684,3]
[367117281,1750662747073,-490.0,0.00030684,3]
[367117282,1750662747082,-816.97,0.00030684,3]
[367117283,1750662747091,-1505.21,0.00030684,3]
[367117284,1750662747101,-490.0,0.00030684,3]
[367117285,1750662747111,-1444.07,0.00030684,3]
[367117286,1750662747120,-490.0,0.00030684,3]
[367117287,1750662747130,-490.0,0.00030684,3]
[367117288,1750662747139,-995.43,0.00030684,3]
[367117289,1750662747151,-3010.94,0.00030684,2]
[367117290,1750662747160,-1097.45,0.00030684,3]
[367117291,1750662747169,-490.0,0.00030684,3]
[367117292,1750662747179,-753.53,0.00030684,3]
[367117293,1750662747188,-1037.06,0.00030684,3]
[367117294,1750662747197,-1995.53,0.00030684,3]
[367117295,1750662747207,-490.0,0.00030684,3]
[367117296,1750662747216,-660.48,0.00030684,3]
[367117297,1750662747226,-752.2,0.00030684,3]
[367117298,1750662747236,-1341.44,0.00030684,3]
[367117299,1750662747245,-850.05,0.00030684,3]
[367117300,1750662747254,-581.79,0.00030684,3]
[367117301,1750662747263,-2153.23,0.00030684,3]
[367117302,1750662747272,-557.61,0.00030684,3]
[367117303,1750662747282,-507.29,0.00030684,3]
[367117304,1750662747291,-572.59,0.00030684,3]
[367117305,1750662747301,-156.52798288,0.00030684,3]
[367117306,1750662747311,-490.0,0.00030684,3]
[367117307,1750662747320,-2413.05,0.00030684,3]
[367117308,1750662747330,-183.97008328,0.00030684,3]
[367117309,1750662747340,-566.43,0.00030684,3]
[367117310,1750662747350,-1348.78,0.00030684,3]
[367117311,1750662747359,-2316.4,0.00030684,3]
[367117312,1750662747369,-1609.27,0.00030684,3]
[367117313,1750662747379,-490.0,0.00030684,3]
[367117314,1750662747389,-569.99,0.00030684,3]
[367117315,1750662747401,-490.0,0.00030684,3]
[367117316,1750662747410,-490.0,0.00030684,3]
[367117317,1750662747420,-490.0,0.00030684,3]
[367117318,1750662747430,-861.6,0.00030684,3]
[367117319,1750662747440,-2663.87,0.00030684,3]
[367117320,1750662747449,-731.27,0.00030684,3]
[367117321,1750662747458,-560.0,0.00030684,3]
[367117322,1750662747468,-1117.5,0.00030684,3]
[367117323,1750662747477,-921.04,0.00030684,3]
[367117324,1750662747487,-783.55,0.00030684,3]
[367117325,1750662747497,-600.11,0.00030684,3]
[367117326,1750662747507,-1052.0,0.00030684,3]
[367117327,1750662747516,-490.0,0.00030684,3]
[367117328,1750662747530,-785.27,0.00030684,3]
[367117329,1750662747539,-595.61,0.00030684,3]
[367117330,1750662747549,-950.58,0.00030684,3]
[367117331,1750662747559,-1688.41,0.00030684,3]
[367117332,1750662747568,-1953.41,0.00030684,3]
[367117333,1750662747578,-523.44,0.00030684,3]
[367117334,1750662747588,-1726.17,0.00030684,3]
[367117335,1750662747598,-603.07,0.00030684,3]
[367117336,1750662747607,-1456.32,0.00030684,3]
[367117337,1750662747617,-1698.32,0.00030684,3]
[367117338,1750662747626,-490.0,0.00030684,3]
[367117339,1750662747635,-490.0,0.00030684,3]
[367117340,1750662747646,-490.0,0.00030684,3]
[367117341,1750662747656,-1007.06,0.00030684,3]
[367117342,1750662747665,-1681.01,0.00030684,3]
[367117343,1750662747674,-152.35350087,0.00030684,3]
[367117344,1750662747684,-1708.4,0.00030684,3]
[367117345,1750662747693,-873.29,0.00030684,3]
[367117346,1750662747704,-1098.59,0.00030684,3]
[367117347,1750662747714,-1944.53,0.00030684,3]
[367117348,1750662747724,-490.0,0.00030684,3]
[367117349,1750662747733,-2433.81,0.00030684,3]
[367117350,1750662747742,-501.38,0.00030684,3]
[367117351,1750662747752,-577.0,0.00030684,3]
[367117352,1750662747761,-750.42,0.00030684,3]
[367117353,1750662747771,-662.45,0.00030684,3]
[367117354,1750662747781,-490.0,0.00030684,3]
[367117355,1750662747790,-1247.14,0.00030684,3]
[367117356,1750662747799,-1551.77,0.00030684,3]
[367117357,1750662747809,-1650.44,0.00030684,3]
[367117358,1750662747819,-703.59,0.00030684,3]
[367117359,1750662747829,-529.91,0.00030684,3]
[367117360,1750662747839,-490.0,0.00030684,3]
[367117361,1750662747850,-490.0,0.00030684,3]
[367117362,1750662747861,-788.62,0.00030684,3]
[367117363,1750662747871,-912.47,0.00030684,3]
[367117364,1750662747883,-1251.29,0.00030684,3]
[367117365,1750662747893,-490.0,0.00030684,3]
[367117366,1750662747903,-655.66,0.00030684,3]
[367117367,1750662747912,-675.57,0.00030684,3]
[367117368,1750662747921,-300.0,0.00030684,3]
[367117369,1750662747931,-1664.2,0.00030684,3]
[367117370,1750662747940,-1679.9,0.00030684,3]
[367117371,1750662747949,-1433.27,0.00030684,3]
[367117372,1750662747958,-1066.4,0.00030684,3]
[367117373,1750662747967,-490.0,0.00030684,3]
[367117374,1750662747976,-572.95,0.00030684,3]
[367117375,1750662747985,-490.0,0.00030684,3]
[367117376,1750662747994,-1605.51,0.00030684,3]
[367117377,1750662748004,-1690.95,0.00030684,3]
[367117378,1750662748013,-490.0,0.00030684,3]
[367117379,1750662748023,-490.0,0.00030684,3]
[367117380,1750662748032,-1674.28,0.00030684,3]
[367117381,1750662748042,-638.77,0.00030684,3]
[367117382,1750662748051,-1574.11,0.00030684,3]
[367117383,1750662748061,-378.81,0.00030684,3]
[367117384,1750662748070,-684.38,0.00030684,3]
[367117385,1750662748079,-1278.36,0.00030684,3]
[367117386,1750662748088,-905.6,0.00030684,3]
[367117387,1750662748098,-1682.39,0.00030684,3]
[367117388,1750662748108,-1126.22,0.00030684,3]
[367117389,1750662748117,-1410.38,0.00030684,3]
[367117390,1750662748127,-1883.69,0.00030684,3]
[367117391,1750662748136,-7415.21,0.00030684,3]
[367117392,1750662748146,-2332.56,0.00030684,3]
[367117393,1750662748155,-159.54956292,0.00030684,3]
[367117394,1750662748165,-1248.93,0.00030684,3]
[367117395,1750662748175,-1449.04,0.00030684,3]
[367117396,1750662748185,-849.69,0.00030684,3]
[367117397,1750662748194,-883.32,0.00030684,3]
[367117398,1750662748204,-901.3,0.00030684,3]
[367117399,1750662748213,-587.88,0.00030684,3]
[367117400,1750662748223,-1164.04,0.00030684,3]
[367117401,1750662748233,-1753.14,0.00030684,3]
[367117402,1750662748243,-10399.38,0.00030684,3]
[367117403,1750662748252,-4073.96,0.00030684,3]
[367117404,1750662748263,-580.67,0.00030684,3]
[367117405,1750662748273,-1448.46,0.00030684,3]
[367117406,1750662748282,-836.73,0.00030684,3]
[367117407,1750662748291,-918.93,0.00030684,3]
[367117408,1750662748302,-1355.08,0.00030684,3]
[367117409,1750662748311,-526.35,0.00030684,3]
[367117410,1750662748320,-6824.52,0.00030684,3]
[367117411,1750662748330,-1900.51,0.00030684,3]
[367117412,1750662748340,-1016.76,0.00030684,3]
[367117413,1750662748349,-3401.6,0.00030684,3]
[367117414,1750662748359,-3966.47,0.00030684,3]
[367117415,1750662748368,-490.0,0.00030684,3]
[367117416,1750662748377,-490.0,0.00030684,3]
[367117417,1750662748386,-909.73,0.00030684,3]
[367117418,1750662748396,-380.42757926,0.00030684,3]
[367117419,1750662748406,-934.07,0.00030684,3]
[367117420,1750662748415,-4949.36,0.00030684,3]
[367117421,1750662748425,-2915.88,0.00030684,3]
[367117422,1750662748435,-490.0,0.00030684,3]
[367117423,1750662748444,-1741.72,0.00030684,3]
[367117424,1750662748453,-1585.93,0.00030684,3]
[367117425,1750662748462,-490.0,0.00030684,3]
[367117426,1750662748471,-490.0,0.00030684,3]
[367117427,1750662748481,-608.52,0.00030684,3]
[367117428,1750662748491,-18062.45,0.00030684,3]
[367117429,1750662748500,-814.19,0.00030684,3]
[367117430,1750662748511,-3468.99,0.00030684,3]
[367117431,1750662748522,-1570.58,0.00030684,3]
[367117432,1750662748535,-1672.97,0.00030684,3]
[367117433,1750662748544,-798.22,0.00030684,3]
[367117434,1750662748554,-789.6,0.00030684,3]
[367117435,1750662748565,-1533.06,0.00030684,3]
[367117436,1750662748575,-1681.4,0.00030684,3]
[367117437,1750662748584,-490.0,0.00030684,3]
[367117438,1750662748594,-528.64,0.00030684,3]
[367117439,1750662748605,-1980.76,0.00030684,3]
[367117440,1750662748616,-1108.02,0.00030684,3]
[367117441,1750662748626,-2594.4,0.00030684,3]
[367117442,1750662748635,-490.0,0.00030684,3]
[367117443,1750662748646,-1623.55,0.00030684,3]
[367117444,1750662748656,-490.0,0.00030684,3]
[367117445,1750662748666,-891.21,0.00030684,3]
[367117446,1750662748676,-1019.18,0.00030684,3]
[367117447,1750662748688,-1174.99,0.00030684,3]
[367117448,1750662748698,-3127.29,0.00030684,3]
[367117449,1750662748708,-1569.21,0.00030684,3]
[367117450,1750662748717,-490.0,0.00030684,3]
[367117451,1750662748726,-1940.59,0.00030684,3]
[367117452,1750662748735,-2329.34,0.00030684,3]
[367117453,1750662748744,-664.92,0.00030684,3]
[367117454,1750662748753,-1830.85,0.00030684,3]
[367117455,1750662748762,-1700.21,0.00030684,3]
[367117456,1750662748772,-2769.81,0.00030684,3]
[367117457,1750662748782,-490.0,0.00030684,3]
[367117458,1750662748791,-6713.02,0.00030684,3]
[367117459,1750662748801,-777.56,0.00030684,3]
[367117460,1750662748810,-398.5,0.00030684,3]
[367117461,1750662748820,-826.09,0.00030684,3]
[367117462,1750662748829,-2394.73,0.00030684,3]
[367117463,1750662748839,-490.0,0.00030684,3]
[367117464,1750662748849,-1294.78,0.00030684,3]
[367117465,1750662748858,-760.04,0.00030684,3]
[367117466,1750662748868,-1749.09,0.00030684,3]
[367117467,1750662748878,-490.0,0.00030684,3]
[367117468,1750662748887,-555.71,0.00030684,3]
[367117469,1750662748897,-1626.24,0.00030684,3]
[367117470,1750662748909,-713.4,0.00030684,3]
[367117471,1750662748918,-4056.64,0.00030684,3]
[367117472,1750662748928,-490.0,0.00030684,3]
[367117473,1750662748937,-1498.64,0.00030684,3]
[367117474,1750662748947,-1457.21,0.00030684,3]
[367117475,1750662748957,-490.0,0.00030684,3]
[367117476,1750662748966,-737.54,0.00030684,3]
[367117477,1750662748976,-1307.83,0.00030684,3]
[367117478,1750662748986,-728.06,0.00030684,3]
[367117479,1750662748996,-490.0,0.00030684,3]
[367117480,1750662749006,-1832.35,0.00030684,3]
[367117481,1750662749015,-1380.67,0.00030684,3]
[367117482,1750662749025,-2228.14,0.00030684,3]
[367117483,1750662749035,-2372.02,0.00030684,3]
[367117484,1750662749045,-490.0,0.00030684,3]
[367117485,1750662749054,-3318.96,0.00030684,3]
[367117486,1750662749064,-709.01,0.00030684,3]
[367117487,1750662749075,-862.45,0.00030684,3]
[367117488,1750662749084,-788.8,0.00030684,3]
[367117489,1750662749094,-1916.86,0.00030684,3]
[367117490,1750662749105,-1200.13,0.00030684,3]
[367117491,1750662749115,-678.77,0.00030684,3]
[367117492,1750662749124,-4654.08,0.00030684,3]
[367117493,1750662749134,-1366.52,0.00030684,3]
[367117494,1750662749144,-515.04,0.00030684,3]
[367117495,1750662749154,-788.62,0.00030684,3]
[367117496,1750662749164,-553.78,0.00030684,3]
[367117497,1750662749174,-1578.33,0.00030684,3]
[367117498,1750662749184,-1107.26,0.00030684,3]
[367117499,1750662749194,-498.97,0.00030684,3]
[367117500,1750662749204,-7394.17,0.00030684,3]
[367117501,1750662749214,-1624.99,0.00030684,3]
[367117502,1750662749224,-487.12952749,0.00030684,3]
[367117503,1750662749234,-500.0,0.00030684,3]
[367117504,1750662749244,-490.0,0.00030684,3]
[367117505,1750662749254,-490.0,0.00030684,3]
[367117506,1750662749264,-2834.49,0.00030684,3]
[367117507,1750662749275,-1036.64,0.00030684,3]
[367117508,1750662749285,-12536.04,0.00030684,3]
[367117509,1750662749295,-3543.99,0.00030684,3]
[367117510,1750662749305,-1768.62,0.00030684,3]
[367117511,1750662749315,-497.45,0.00030684,3]
[367117512,1750662749326,-490.0,0.00030684,3]
[367117513,1750662749336,-1619.96,0.00030684,3]
[367117514,1750662749346,-510.41,0.00030684,3]
[367117515,1750662749356,-9852.89,0.00030684,3]
[367117516,1750662749367,-5190.35,0.00030684,3]
[367117517,1750662749376,-490.0,0.00030684,3]
[367117518,1750662749387,-1552.44,0.00030684,3]
[367117519,1750662749396,-814.87,0.00030684,3]
[367117520,1750662749406,-2783.14,0.00030684,3]
[367117521,1750662749416,-1947.91,0.00030684,3]
[367117522,1750662749426,-510.26,0.00030684,3]
[367117523,1750662749436,-1717.08,0.00030684,3]
[367117524,1750662749446,-490.0,0.00030684,3]
[367117525,1750662749456,-2330.84,0.00030684,3]
[367117526,1750662749465,-1630.26,0.00030684,3]
[367117527,1750662749475,-752.02,0.00030684,3]
[367117528,1750662749485,-490.0,0.00030684,3]
[367117529,1750662749495,-1618.67,0.00030684,3]
[367117530,1750662749505,-490.0,0.00030684,3]
[367117531,1750662749515,-1776.65,0.00030684,3]
[367117532,1750662749526,-915.84,0.00030684,3]
[367117533,1750662749536,-1151.97,0.00030684,3]
[367117534,1750662749546,-670.37,0.00030684,3]
[367117535,1750662749557,-3986.65,0.00030684,3]
[367117536,1750662749567,-1591.01,0.00030684,3]
[367117537,1750662749577,-1960.82,0.00030684,3]
[367117538,1750662749587,-6065.53,0.00030684,3]
[367117539,1750662749596,-1605.38,0.00030684,3]
[367117540,1750662749606,-1642.63,0.00030684,3]
[367117541,1750662749617,-798.12,0.00030684,3]
[367117542,1750662749627,-1292.66,0.00030684,3]
[367117543,1750662749638,-2292.5,0.00030684,3]
[367117544,1750662749648,-2903.63,0.00030684,3]
[367117545,1750662749659,-1562.1,0.00030684,3]
[367117546,1750662749669,-4219.23,0.00030684,3]
[367117547,1750662749680,-765.43,0.00030684,3]
[367117548,1750662749690,-1872.32,0.00030684,3]
[367117549,1750662749700,-3240.53,0.00030684,3]
[367117550,1750662749711,-492.32,0.00030684,3]
[367117551,1750662749722,-1684.89,0.00030684,3]
[367117552,1750662749733,-1499.13,0.00030684,3]
[367117553,1750662749743,-1822.31,0.00030684,3]
[367117554,1750662749753,-2262.37,0.00030684,3]
[367117555,1750662749764,-490.0,0.00030684,3]
[367117556,1750662749775,-745.32,0.00030684,3]
[367117557,1750662749785,-490.0,0.00030684,3]
[367117558,1750662749795,-1565.33,0.00030684,3]
[367117559,1750662749805,-3248.59,0.00030684,3]
[367117560,1750662749816,-1599.78,0.00030684,3]
[367117561,1750662749826,-1190.83,0.00030684,3]
[367117562,1750662749836,-795.18,0.00030684,3]
[367117563,1750662749847,-638.67,0.00030684,3]
[367117564,1750662749859,-8785.1,0.00030684,3]
[367117565,1750662749869,-849.6,0.00030684,3]
[367117566,1750662749880,-1583.66,0.00030684,3]
[367117567,1750662749890,-1787.94,0.00030684,3]
[367117568,1750662749901,-1335.88,0.00030684,3]
[367117569,1750662749911,-1444.68,0.00030684,3]
[367117570,1750662749923,-948.02,0.00030684,3]
[367117571,1750662749934,-490.0,0.00030684,3]
[367117572,1750662749947,-507.9,0.00030684,3]
[367117573,1750662749958,-3963.91,0.00030684,3]
[367117574,1750662749968,-1578.99,0.00030684,3]
[367117575,1750662749978,-1445.82,0.00030684,3]
[367117576,1750662749988,-1285.59,0.00030684,3]
[367117577,1750662749999,-490.0,0.00030684,3]
[367117578,1750662750010,-490.0,0.00030684,3]
[367117579,1750662750019,-490.0,0.00030684,3]
[367117580,1750662750029,-728.45,0.00030684,3]
[367117581,1750662750039,-806.96,0.00030684,3]
[367117582,1750662750049,-1797.81,0.00030684,3]
[367117583,1750662750059,-1831.64,0.00030684,3]
[367117584,1750662750068,-1432.05,0.00030684,3]
[367117585,1750662750078,-919.07,0.00030684,3]
[367117586,1750662750088,-490.0,0.00030684,3]
[367117587,1750662750098,-14900.62,0.00030684,3]
[367117588,1750662750107,-1833.67,0.00030684,3]
[367117589,1750662750118,-2078.39,0.00030684,3]
[367117590,1750662750128,-510.45,0.00030684,3]
[367117591,1750662750138,-490.0,0.00030684,3]
[367117592,1750662750148,-4833.93,0.00030684,3]
[367117593,1750662750158,-1601.31,0.00030684,3]
[367117594,1750662750168,-759.06,0.00030684,3]
[367117595,1750662750178,-873.41,0.00030684,3]
[367117596,1750662750188,-4669.42,0.00030684,3]
[367117597,1750662750198,-791.68,0.00030684,3]
[367117598,1750662750208,-1693.53,0.00030684,3]
[367117599,1750662750218,-990.18,0.00030684,3]
[367117600,1750662750229,-1034.99,0.00030684,3]
[367117601,1750662750239,-1620.6,0.00030684,3]
[367117602,1750662750249,-1653.45,0.00030684,3]
[367117603,1750662750259,-1389.7,0.00030684,3]
[367117604,1750662750270,-3451.15,0.00030684,3]
[367117605,1750662750280,-490.0,0.00030684,3]
[367117606,1750662750290,-2416.24,0.00030684,3]
[367117607,1750662750300,-993.54,0.00030684,3]
[367117608,1750662750310,-566.41,0.00030684,3]
[367117609,1750662750320,-11090.94,0.00030684,3]
[367117610,1750662750330,-1799.28,0.00030684,3]
[367117611,1750662750340,-1221.42,0.00030684,3]
[367117612,1750662750350,-1701.67,0.00030684,3]
[367117613,1750662750360,-2070.18,0.00030684,3]
[367117614,1750662750370,-1378.47,0.00030684,3]
[367117615,1750662750380,-1736.17,0.00030684,3]
[367117616,1750662750390,-1087.15,0.00030684,3]
[367117617,1750662750402,-1816.97,0.00030684,3]
[367117618,1750662750412,-1834.95,0.00030684,3]
[367117619,1750662750434,-709.09,0.00030684,3]
[367117620,1750662750449,-490.0,0.00030684,3]
[367117621,1750662750459,-1672.0,0.00030684,3]
[367117622,1750662750471,-1571.12,0.00030684,3]
[367117623,1750662750482,-1351.61,0.00030684,3]
[367117624,1750662750492,-490.0,0.00030684,3]
[367117625,1750662750503,-490.0,0.00030684,3]
[367117626,1750662750513,-4884.01,0.00030684,3]
[367117627,1750662750525,-1729.07,0.00030684,3]
[367117628,1750662750537,-8073.75,0.00030684,3]
[367117629,1750662750548,-1652.26,0.00030684,3]
[367117630,1750662750558,-718.8,0.00030684,3]
[367117631,1750662750570,-867.32,0.00030684,3]
[367117632,1750662750581,-369.03148516,0.00030684,3]
[367117633,1750662750591,-30050.84,0.00030684,3]
[367117634,1750662750603,-1482.76,0.00030684,3]